Department family,Entity,Date,Expense type,Expense area,Supplier,Transaction number,Amount
Department of Health,Leicestershire Partnership NHS Trust,03/06/19,Crs_NHS_LT1y -Resus Inventory Supplied.,Balance Sheet Collection,SUPPLY CHAIN CO LTD,1010045975,27034.60
Department of Health,Leicestershire Partnership NHS Trust,03/06/19,GP IT Expenditure,Area Team,CCS MEDIA,3495275,57504.00
Department of Health,Leicestershire Partnership NHS Trust,03/06/19,GP IT Expenditure,Area Team,CCS MEDIA,3495276,57504.00
Department of Health,Leicestershire Partnership NHS Trust,03/06/19,WIP Project Not in BS - Information Technology,Work in Progress,VODAFONE CORPORATE LTD,LZ31407,68013.48
Department of Health,Leicestershire Partnership NHS Trust,03/06/19,HIS LPT Costs,HIS,THE PHOENIX PARTNERSHIP,CR9885,-37824.00
Department of Health,Leicestershire Partnership NHS Trust,04/06/19,Occupational Health,HR Operations,UHL NHS TRUST (RWE),L0227668,26622.00
Department of Health,Leicestershire Partnership NHS Trust,04/06/19,Services / Recharges from NHS Trusts,Inter Unit I & E Distribution,UHL NHS TRUST (RWE),L0227674,176301.00
Department of Health,Leicestershire Partnership NHS Trust,05/06/19,External Data Processing / Storage,Records & information Governance,C & V DATA MANAGEMENT SRV LTD,0068225,28438.64
Department of Health,Leicestershire Partnership NHS Trust,05/06/19,Leased / Hired Vehicles,Autism,AUTOMOTIVE LEASING LTD,505352169,1277.92
Department of Health,Leicestershire Partnership NHS Trust,05/06/19,Prep_ LT1y -Prepayments Lease Cars,Balance Sheet Collection,AUTOMOTIVE LEASING LTD,505352169,46785.71
Department of Health,Leicestershire Partnership NHS Trust,05/06/19,Trade_Drs_LT1y -Lease Cars Invoicing Contrl Ac.,Balance Sheet Collection,AUTOMOTIVE LEASING LTD,505352169,405.57
Department of Health,Leicestershire Partnership NHS Trust,05/06/19,Leased / Hired Vehicles,CAMHS Young Peoples Team,AUTOMOTIVE LEASING LTD,505352169,533.68
Department of Health,Leicestershire Partnership NHS Trust,05/06/19,Leased / Hired Vehicles,City Community Therapy,AUTOMOTIVE LEASING LTD,505352169,289.60
Department of Health,Leicestershire Partnership NHS Trust,05/06/19,Leased / Hired Vehicles,City ICS,AUTOMOTIVE LEASING LTD,505352169,45.56
Department of Health,Leicestershire Partnership NHS Trust,05/06/19,Leased / Hired Vehicles,City Planned Care - East,AUTOMOTIVE LEASING LTD,505352169,657.12
Department of Health,Leicestershire Partnership NHS Trust,05/06/19,Leased / Hired Vehicles,County 0-19 Blaby HV,AUTOMOTIVE LEASING LTD,505352169,1178.25
Department of Health,Leicestershire Partnership NHS Trust,05/06/19,Leased / Hired Vehicles,County 0-19 Hinckley & Bosworth HV,AUTOMOTIVE LEASING LTD,505352169,630.56
Department of Health,Leicestershire Partnership NHS Trust,05/06/19,Leased / Hired Vehicles,Countywide Memory Service,AUTOMOTIVE LEASING LTD,505352169,492.36
Department of Health,Leicestershire Partnership NHS Trust,05/06/19,Leased / Hired Vehicles,Crisis Resolution,AUTOMOTIVE LEASING LTD,505352169,527.00
Department of Health,Leicestershire Partnership NHS Trust,05/06/19,Leased / Hired Vehicles,Crisis Response and Home Treatment,AUTOMOTIVE LEASING LTD,505352169,1444.20
Department of Health,Leicestershire Partnership NHS Trust,05/06/19,Leased / Hired Vehicles,East Planned Care - Blaby/Lutterworth,AUTOMOTIVE LEASING LTD,505352169,15.00
Department of Health,Leicestershire Partnership NHS Trust,05/06/19,Leased / Hired Vehicles,"East Planned Care - Melton,Syston,Rutland",AUTOMOTIVE LEASING LTD,505352169,404.28
Department of Health,Leicestershire Partnership NHS Trust,05/06/19,Leased / Hired Vehicles,Group 1 C&F Management,AUTOMOTIVE LEASING LTD,505352169,252.00
Department of Health,Leicestershire Partnership NHS Trust,05/06/19,Leased / Hired Vehicles,HIS,AUTOMOTIVE LEASING LTD,505352169,5.00
Department of Health,Leicestershire Partnership NHS Trust,05/06/19,Leased / Hired Vehicles,Mill Lodge,AUTOMOTIVE LEASING LTD,505352169,422.15
Department of Health,Leicestershire Partnership NHS Trust,05/06/19,Leased / Hired Vehicles,South West ICS,AUTOMOTIVE LEASING LTD,505352169,15.00
Department of Health,Leicestershire Partnership NHS Trust,05/06/19,Leased / Hired Vehicles,Stewart House,AUTOMOTIVE LEASING LTD,505352169,50.00
Department of Health,Leicestershire Partnership NHS Trust,05/06/19,Leased / Hired Vehicles,West Planned Care  - Hinckley Hub,AUTOMOTIVE LEASING LTD,505352169,10.00
Department of Health,Leicestershire Partnership NHS Trust,05/06/19,Rent,Bridge Park Plaza - First Floor (LPT),RAYNSWAY PROPERTIES LTD,INV-0962,70816.80
Department of Health,Leicestershire Partnership NHS Trust,05/06/19,Payroll Deductions -Salary Sacrifice Cars Scheme,Balance Sheet Collection,TUSKER,17812,34889.89
Department of Health,Leicestershire Partnership NHS Trust,06/06/19,Nurse - Band 6 -Agency,Adult City East CMHT - Merlyn Vaz,HCL NURSING,HNSI0000010,2348.14
Department of Health,Leicestershire Partnership NHS Trust,06/06/19,Nurse - Band 6 -Agency,Adult County North West Leicestershire CMHT,HCL NURSING,HNSI0000010,1293.30
Department of Health,Leicestershire Partnership NHS Trust,06/06/19,Nurse - Band 6 -Agency,Adult County West Leicestershire CMHT,HCL NURSING,HNSI0000010,1110.29
Department of Health,Leicestershire Partnership NHS Trust,06/06/19,NURSE - BAND 2 - AGENCY,Agnes Unit Management,HCL NURSING,HNSI0000010,2420.59
Department of Health,Leicestershire Partnership NHS Trust,06/06/19,NURSE - BAND 2 - AGENCY,Ashby Ward (Bradgate Unit),HCL NURSING,HNSI0000010,211.12
Department of Health,Leicestershire Partnership NHS Trust,06/06/19,NURSE - BAND 2 - AGENCY,Aston Ward (Bradgate Unit),HCL NURSING,HNSI0000010,440.34
Department of Health,Leicestershire Partnership NHS Trust,06/06/19,NURSE - BAND 2 - AGENCY,Beaumont Ward - Bradgate Unit,HCL NURSING,HNSI0000010,211.93
Department of Health,Leicestershire Partnership NHS Trust,06/06/19,NURSE - BAND 5 - AGENCY,Beaumont Ward - Bradgate Unit,HCL NURSING,HNSI0000010,1636.70
Department of Health,Leicestershire Partnership NHS Trust,06/06/19,NURSE - BAND 2 - AGENCY,Belvoir Psychiatric Intensive Care Unit,HCL NURSING,HNSI0000010,2203.11
Department of Health,Leicestershire Partnership NHS Trust,06/06/19,NURSE - BAND 5 - AGENCY,Belvoir Psychiatric Intensive Care Unit,HCL NURSING,HNSI0000010,2461.89
Department of Health,Leicestershire Partnership NHS Trust,06/06/19,NURSE - BAND 2 - AGENCY,Bosworth Ward - Bradgate Unit,HCL NURSING,HNSI0000010,804.21
Department of Health,Leicestershire Partnership NHS Trust,06/06/19,NURSE - BAND 5 - AGENCY,Bosworth Ward - Bradgate Unit,HCL NURSING,HNSI0000010,329.81
Department of Health,Leicestershire Partnership NHS Trust,06/06/19,Nurse - Band 6 -Agency,Crisis Resolution,HCL NURSING,HNSI0000010,3586.18
Department of Health,Leicestershire Partnership NHS Trust,06/06/19,NURSE - BAND 2 - AGENCY,Griffin Ward (HPC),HCL NURSING,HNSI0000010,415.02
Department of Health,Leicestershire Partnership NHS Trust,06/06/19,NURSE - BAND 5 - AGENCY,Griffin Ward (HPC),HCL NURSING,HNSI0000010,4599.80
Department of Health,Leicestershire Partnership NHS Trust,06/06/19,NURSE - BAND 2 - AGENCY,Heather Ward,HCL NURSING,HNSI0000010,168.41
Department of Health,Leicestershire Partnership NHS Trust,06/06/19,NURSE - BAND 5 - AGENCY,Heather Ward,HCL NURSING,HNSI0000010,1329.40
Department of Health,Leicestershire Partnership NHS Trust,06/06/19,Nurse - Band 6 -Agency,Leicestershire Psych-oncology Service,HCL NURSING,HNSI0000010,510.66
Department of Health,Leicestershire Partnership NHS Trust,06/06/19,NURSE - BAND 2 - AGENCY,Maple Ward,HCL NURSING,HNSI0000010,218.93
Department of Health,Leicestershire Partnership NHS Trust,06/06/19,Nurse - Band 6 -Agency,Mental Health Triage Team,HCL NURSING,HNSI0000010,5257.78
Department of Health,Leicestershire Partnership NHS Trust,06/06/19,NURSE - BAND 2 - AGENCY,Mill Lodge,HCL NURSING,HNSI0000010,353.88
Department of Health,Leicestershire Partnership NHS Trust,06/06/19,NURSE - BAND 5 - AGENCY,Mill Lodge,HCL NURSING,HNSI0000010,824.88
Department of Health,Leicestershire Partnership NHS Trust,06/06/19,NURSE - BAND 2 - AGENCY,Phoenix Ward (HPC),HCL NURSING,HNSI0000010,206.12
Department of Health,Leicestershire Partnership NHS Trust,06/06/19,NURSE - BAND 2 - AGENCY,Thornton Ward - Bradgate Unit,HCL NURSING,HNSI0000010,168.41
Department of Health,Leicestershire Partnership NHS Trust,06/06/19,NURSE - BAND 2 - AGENCY,Watermead Ward (Bradgate Unit),HCL NURSING,HNSI0000010,847.73
Department of Health,Leicestershire Partnership NHS Trust,06/06/19,NURSE - BAND 2 - AGENCY,Acacia (Willows),HCL NURSING,HNSI0000013,168.41
Department of Health,Leicestershire Partnership NHS Trust,06/06/19,Nurse - Band 6 -Agency,Adult City East CMHT - Merlyn Vaz,HCL NURSING,HNSI0000013,1604.82
Department of Health,Leicestershire Partnership NHS Trust,06/06/19,Nurse - Band 6 -Agency,Adult County North West Leicestershire CMHT,HCL NURSING,HNSI0000013,2139.75
Department of Health,Leicestershire Partnership NHS Trust,06/06/19,Nurse - Band 6 -Agency,Adult County West Leicestershire CMHT,HCL NURSING,HNSI0000013,2267.69
Department of Health,Leicestershire Partnership NHS Trust,06/06/19,NURSE - BAND 2 - AGENCY,Agnes Unit Management,HCL NURSING,HNSI0000013,5208.88
Department of Health,Leicestershire Partnership NHS Trust,06/06/19,NURSE - BAND 2 - AGENCY,Aston Ward (Bradgate Unit),HCL NURSING,HNSI0000013,194.43
Department of Health,Leicestershire Partnership NHS Trust,06/06/19,NURSE - BAND 5 - AGENCY,Aston Ward (Bradgate Unit),HCL NURSING,HNSI0000013,700.20
Department of Health,Leicestershire Partnership NHS Trust,06/06/19,NURSE - BAND 2 - AGENCY,Beaumont Ward - Bradgate Unit,HCL NURSING,HNSI0000013,442.60
Department of Health,Leicestershire Partnership NHS Trust,06/06/19,NURSE - BAND 5 - AGENCY,Beaumont Ward - Bradgate Unit,HCL NURSING,HNSI0000013,960.17
Department of Health,Leicestershire Partnership NHS Trust,06/06/19,NURSE - BAND 2 - AGENCY,Belvoir Psychiatric Intensive Care Unit,HCL NURSING,HNSI0000013,1361.67
Department of Health,Leicestershire Partnership NHS Trust,06/06/19,NURSE - BAND 5 - AGENCY,Belvoir Psychiatric Intensive Care Unit,HCL NURSING,HNSI0000013,1966.52
Department of Health,Leicestershire Partnership NHS Trust,06/06/19,NURSE - BAND 5 - AGENCY,Bosworth Ward - Bradgate Unit,HCL NURSING,HNSI0000013,329.81
Department of Health,Leicestershire Partnership NHS Trust,06/06/19,Nurse - Band 6 -Agency,Crisis Resolution,HCL NURSING,HNSI0000013,2433.80
Department of Health,Leicestershire Partnership NHS Trust,06/06/19,NURSE - BAND 2 - AGENCY,Griffin Ward (HPC),HCL NURSING,HNSI0000013,715.07
Department of Health,Leicestershire Partnership NHS Trust,06/06/19,NURSE - BAND 5 - AGENCY,Griffin Ward (HPC),HCL NURSING,HNSI0000013,3569.48
Department of Health,Leicestershire Partnership NHS Trust,06/06/19,NURSE - BAND 5 - AGENCY,Heather Ward,HCL NURSING,HNSI0000013,370.38
Department of Health,Leicestershire Partnership NHS Trust,06/06/19,Nurse - Band 6 -Agency,Leicestershire Psych-oncology Service,HCL NURSING,HNSI0000013,641.93
Department of Health,Leicestershire Partnership NHS Trust,06/06/19,Nurse - Band 6 -Agency,Mental Health Triage Team,HCL NURSING,HNSI0000013,585.85
Department of Health,Leicestershire Partnership NHS Trust,06/06/19,NURSE - BAND 2 - AGENCY,Phoenix Ward (HPC),HCL NURSING,HNSI0000013,760.06
Department of Health,Leicestershire Partnership NHS Trust,06/06/19,NURSE - BAND 5 - AGENCY,Place Of Safety Assessment Unit,HCL NURSING,HNSI0000013,364.74
Department of Health,Leicestershire Partnership NHS Trust,06/06/19,NURSE - BAND 2 - AGENCY,Stewart House,HCL NURSING,HNSI0000013,203.88
Department of Health,Leicestershire Partnership NHS Trust,06/06/19,NURSE - BAND 2 - AGENCY,Thornton Ward - Bradgate Unit,HCL NURSING,HNSI0000013,211.12
Department of Health,Leicestershire Partnership NHS Trust,06/06/19,NURSE - BAND 5 - AGENCY,Watermead Ward (Bradgate Unit),HCL NURSING,HNSI0000013,700.19
Department of Health,Leicestershire Partnership NHS Trust,06/06/19,Nurse - Band 6 -Agency,Adult City East CMHT - Merlyn Vaz,HCL NURSING,HNSI0000016,2081.37
Department of Health,Leicestershire Partnership NHS Trust,06/06/19,Nurse - Band 6 -Agency,Adult County Charnwood CMHT - Loughborough Base,HCL NURSING,HNSI0000016,1069.88
Department of Health,Leicestershire Partnership NHS Trust,06/06/19,Nurse - Band 6 -Agency,Adult County North West Leicestershire CMHT,HCL NURSING,HNSI0000016,1283.85
Department of Health,Leicestershire Partnership NHS Trust,06/06/19,Nurse - Band 6 -Agency,Adult County West Leicestershire CMHT,HCL NURSING,HNSI0000016,24.71
Department of Health,Leicestershire Partnership NHS Trust,06/06/19,NURSE - BAND 2 - AGENCY,Agnes Unit Management,HCL NURSING,HNSI0000016,2760.67
Department of Health,Leicestershire Partnership NHS Trust,06/06/19,NURSE - BAND 5 - AGENCY,Agnes Unit Management,HCL NURSING,HNSI0000016,1011.40
Department of Health,Leicestershire Partnership NHS Trust,06/06/19,NURSE - BAND 2 - AGENCY,Aston Ward (Bradgate Unit),HCL NURSING,HNSI0000016,374.11
Department of Health,Leicestershire Partnership NHS Trust,06/06/19,NURSE - BAND 2 - AGENCY,Beaumont Ward - Bradgate Unit,HCL NURSING,HNSI0000016,417.63
Department of Health,Leicestershire Partnership NHS Trust,06/06/19,NURSE - BAND 5 - AGENCY,Beaumont Ward - Bradgate Unit,HCL NURSING,HNSI0000016,1699.78
Department of Health,Leicestershire Partnership NHS Trust,06/06/19,NURSE - BAND 2 - AGENCY,Belvoir Psychiatric Intensive Care Unit,HCL NURSING,HNSI0000016,3108.38
Department of Health,Leicestershire Partnership NHS Trust,06/06/19,NURSE - BAND 5 - AGENCY,Belvoir Psychiatric Intensive Care Unit,HCL NURSING,HNSI0000016,1522.93
Department of Health,Leicestershire Partnership NHS Trust,06/06/19,NURSE - BAND 2 - AGENCY,Bosworth Ward - Bradgate Unit,HCL NURSING,HNSI0000016,540.95
Department of Health,Leicestershire Partnership NHS Trust,06/06/19,NURSE - BAND 5 - AGENCY,Bosworth Ward - Bradgate Unit,HCL NURSING,HNSI0000016,329.81
Department of Health,Leicestershire Partnership NHS Trust,06/06/19,NURSE - BAND 2 - AGENCY,Cedar (Willows),HCL NURSING,HNSI0000016,387.34
Department of Health,Leicestershire Partnership NHS Trust,06/06/19,Nurse - Band 6 -Agency,Crisis Resolution,HCL NURSING,HNSI0000016,4581.99
Department of Health,Leicestershire Partnership NHS Trust,06/06/19,NURSE - BAND 2 - AGENCY,Griffin Ward (HPC),HCL NURSING,HNSI0000016,194.43
Department of Health,Leicestershire Partnership NHS Trust,06/06/19,NURSE - BAND 5 - AGENCY,Griffin Ward (HPC),HCL NURSING,HNSI0000016,4218.65
Department of Health,Leicestershire Partnership NHS Trust,06/06/19,NURSE - BAND 2 - AGENCY,Heather Ward,HCL NURSING,HNSI0000016,423.87
Department of Health,Leicestershire Partnership NHS Trust,06/06/19,NURSE - BAND 5 - AGENCY,Heather Ward,HCL NURSING,HNSI0000016,266.74
Department of Health,Leicestershire Partnership NHS Trust,06/06/19,NURSE - BAND 2 - AGENCY,Maple Ward,HCL NURSING,HNSI0000016,411.96
Department of Health,Leicestershire Partnership NHS Trust,06/06/19,Nurse - Band 6 -Agency,Mental Health Triage Team,HCL NURSING,HNSI0000016,1331.97
Department of Health,Leicestershire Partnership NHS Trust,06/06/19,NURSE - BAND 2 - AGENCY,Mill Lodge,HCL NURSING,HNSI0000016,176.94
Department of Health,Leicestershire Partnership NHS Trust,06/06/19,NURSE - BAND 2 - AGENCY,Phoenix Ward (HPC),HCL NURSING,HNSI0000016,211.93
Department of Health,Leicestershire Partnership NHS Trust,06/06/19,NURSE - BAND 2 - AGENCY,Stewart House,HCL NURSING,HNSI0000016,141.76
Department of Health,Leicestershire Partnership NHS Trust,06/06/19,NURSE - BAND 5 - AGENCY,Stewart House,HCL NURSING,HNSI0000016,366.82
Department of Health,Leicestershire Partnership NHS Trust,06/06/19,NURSE - BAND 2 - AGENCY,Thornton Ward - Bradgate Unit,HCL NURSING,HNSI0000016,380.35
Department of Health,Leicestershire Partnership NHS Trust,06/06/19,NURSE - BAND 2 - AGENCY,Watermead Ward (Bradgate Unit),HCL NURSING,HNSI0000016,418.65
Department of Health,Leicestershire Partnership NHS Trust,06/06/19,NURSE - BAND 5 - AGENCY,Watermead Ward (Bradgate Unit),HCL NURSING,HNSI0000016,932.01
Department of Health,Leicestershire Partnership NHS Trust,06/06/19,Unitary Payment,"The Agnes Unit (AKA Assessment and Treatment Centre) (P85, LPT)",ARDEN PARTNERSHIP (LEICESTER),SI0030,115510.13
Department of Health,Leicestershire Partnership NHS Trust,10/06/19,Crs_NHS_LT1y -Resus Inventory Supplied.,Balance Sheet Collection,SUPPLY CHAIN CO LTD,1010052708,46472.89
Department of Health,Leicestershire Partnership NHS Trust,10/06/19,Telephone equipment,"LGH - Gwendolen House (P4, LPT)",VIRGIN MEDIA BUSINESS,60038736,31914.72
Department of Health,Leicestershire Partnership NHS Trust,10/06/19,Computer Software,Chief Nurse,CIVICA UK LTD,C/HA180287,53350.80
Department of Health,Leicestershire Partnership NHS Trust,10/06/19,HIS LPT Costs,HIS,THE PHOENIX PARTNERSHIP,9793,678316.27
Department of Health,Leicestershire Partnership NHS Trust,11/06/19,Network Costs - WAN Maint,HIS Infrastructure,VIRGIN MEDIA BUSINESS,262421-156,46565.94
Department of Health,Leicestershire Partnership NHS Trust,11/06/19,NURSE - BAND 2 - AGENCY,Beechwood Ward,HCL NURSING,HNSI0000017,218.93
Department of Health,Leicestershire Partnership NHS Trust,11/06/19,NURSE - BAND 5 - AGENCY,Beechwood Ward,HCL NURSING,HNSI0000017,775.19
Department of Health,Leicestershire Partnership NHS Trust,11/06/19,NURSE - BAND 5 - AGENCY,City ICS,HCL NURSING,HNSI0000017,1558.75
Department of Health,Leicestershire Partnership NHS Trust,11/06/19,NURSE - BAND 5 - AGENCY,City Planned Care - East,HCL NURSING,HNSI0000017,15952.26
Department of Health,Leicestershire Partnership NHS Trust,11/06/19,NURSE - BAND 5 - AGENCY,City Planned Care - West,HCL NURSING,HNSI0000017,9639.89
Department of Health,Leicestershire Partnership NHS Trust,11/06/19,Nurse - Band 6 -Agency,City West CMHT MHSOP,HCL NURSING,HNSI0000017,1069.88
Department of Health,Leicestershire Partnership NHS Trust,11/06/19,NURSE - BAND 2 - AGENCY,Clarendon Ward,HCL NURSING,HNSI0000017,109.19
Department of Health,Leicestershire Partnership NHS Trust,11/06/19,NURSE - BAND 5 - AGENCY,Clarendon Ward,HCL NURSING,HNSI0000017,1165.48
Department of Health,Leicestershire Partnership NHS Trust,11/06/19,NURSE - BAND 2 - AGENCY,Coalville Snibston Ward,HCL NURSING,HNSI0000017,677.54
Department of Health,Leicestershire Partnership NHS Trust,11/06/19,NURSE - BAND 2 - AGENCY,Coalville Ward 2,HCL NURSING,HNSI0000017,439.56
Department of Health,Leicestershire Partnership NHS Trust,11/06/19,NURSE - BAND 5 - AGENCY,Coalville Ward 2,HCL NURSING,HNSI0000017,606.99
Department of Health,Leicestershire Partnership NHS Trust,11/06/19,NURSE - BAND 2 - AGENCY,Coleman Ward,HCL NURSING,HNSI0000017,820.11
Department of Health,Leicestershire Partnership NHS Trust,11/06/19,NURSE - BAND 5 - AGENCY,Coleman Ward,HCL NURSING,HNSI0000017,312.72
Department of Health,Leicestershire Partnership NHS Trust,11/06/19,NURSE - BAND 3 - AGENCY,East Planned Care - Blaby/Lutterworth,HCL NURSING,HNSI0000017,682.97
Department of Health,Leicestershire Partnership NHS Trust,11/06/19,NURSE - BAND 2 - AGENCY,Gwendolen Ward,HCL NURSING,HNSI0000017,109.17
Department of Health,Leicestershire Partnership NHS Trust,11/06/19,NURSE - BAND 2 - AGENCY,H&B Comm Hosp East Ward,HCL NURSING,HNSI0000017,2887.65
Department of Health,Leicestershire Partnership NHS Trust,11/06/19,NURSE - BAND 5 - AGENCY,H&B Comm Hosp East Ward,HCL NURSING,HNSI0000017,614.28
Department of Health,Leicestershire Partnership NHS Trust,11/06/19,NURSE - BAND 2 - AGENCY,H&B Comm Hosp North Ward,HCL NURSING,HNSI0000017,327.57
Department of Health,Leicestershire Partnership NHS Trust,11/06/19,NURSE - BAND 5 - AGENCY,H&B Comm Hosp North Ward,HCL NURSING,HNSI0000017,434.44
Department of Health,Leicestershire Partnership NHS Trust,11/06/19,NURSE - BAND 5 - AGENCY,Lough Swithland Ward,HCL NURSING,HNSI0000017,1234.06
Department of Health,Leicestershire Partnership NHS Trust,11/06/19,Nurse - Band 6 -Agency,MHSOP Integrated Care Team,HCL NURSING,HNSI0000017,1673.86
Department of Health,Leicestershire Partnership NHS Trust,11/06/19,NURSE - BAND 5 - AGENCY,South East ICS,HCL NURSING,HNSI0000017,675.88
Department of Health,Leicestershire Partnership NHS Trust,11/06/19,NURSE - BAND 2 - AGENCY,St Lukes Stroke Ward,HCL NURSING,HNSI0000017,141.76
Department of Health,Leicestershire Partnership NHS Trust,11/06/19,NURSE - BAND 5 - AGENCY,St Lukes Ward 3,HCL NURSING,HNSI0000017,1991.88
Department of Health,Leicestershire Partnership NHS Trust,11/06/19,NURSE - BAND 5 - AGENCY,City ICS,HCL NURSING,HNSI0000014,883.70
Department of Health,Leicestershire Partnership NHS Trust,11/06/19,NURSE - BAND 5 - AGENCY,City Planned Care - East,HCL NURSING,HNSI0000014,16773.28
Department of Health,Leicestershire Partnership NHS Trust,11/06/19,NURSE - BAND 5 - AGENCY,City Planned Care - West,HCL NURSING,HNSI0000014,7426.19
Department of Health,Leicestershire Partnership NHS Trust,11/06/19,Nurse - Band 6 -Agency,City West CMHT MHSOP,HCL NURSING,HNSI0000014,1497.83
Department of Health,Leicestershire Partnership NHS Trust,11/06/19,NURSE - BAND 5 - AGENCY,Clarendon Ward,HCL NURSING,HNSI0000014,514.90
Department of Health,Leicestershire Partnership NHS Trust,11/06/19,NURSE - BAND 2 - AGENCY,Coalville Ward 2,HCL NURSING,HNSI0000014,973.09
Department of Health,Leicestershire Partnership NHS Trust,11/06/19,NURSE - BAND 2 - AGENCY,Coleman Ward,HCL NURSING,HNSI0000014,405.43
Department of Health,Leicestershire Partnership NHS Trust,11/06/19,NURSE - BAND 5 - AGENCY,Dalgliesh Ward,HCL NURSING,HNSI0000014,514.90
Department of Health,Leicestershire Partnership NHS Trust,11/06/19,NURSE - BAND 3 - AGENCY,East Planned Care - Blaby/Lutterworth,HCL NURSING,HNSI0000014,1235.55
Department of Health,Leicestershire Partnership NHS Trust,11/06/19,NURSE - BAND 5 - AGENCY,Evening Service,HCL NURSING,HNSI0000014,496.03
Department of Health,Leicestershire Partnership NHS Trust,11/06/19,NURSE - BAND 5 - AGENCY,Fielding Palmer Nursing,HCL NURSING,HNSI0000014,869.26
Department of Health,Leicestershire Partnership NHS Trust,11/06/19,NURSE - BAND 2 - AGENCY,Gwendolen Ward,HCL NURSING,HNSI0000014,144.96
Department of Health,Leicestershire Partnership NHS Trust,11/06/19,NURSE - BAND 2 - AGENCY,H&B Comm Hosp East Ward,HCL NURSING,HNSI0000014,3397.78
Department of Health,Leicestershire Partnership NHS Trust,11/06/19,NURSE - BAND 5 - AGENCY,H&B Comm Hosp East Ward,HCL NURSING,HNSI0000014,392.89
Department of Health,Leicestershire Partnership NHS Trust,11/06/19,NURSE - BAND 2 - AGENCY,H&B Comm Hosp North Ward,HCL NURSING,HNSI0000014,753.10
Department of Health,Leicestershire Partnership NHS Trust,11/06/19,NURSE - BAND 5 - AGENCY,Lough Swithland Ward,HCL NURSING,HNSI0000014,571.88
Department of Health,Leicestershire Partnership NHS Trust,11/06/19,Nurse - Band 6 -Agency,MHSOP Integrated Care Team,HCL NURSING,HNSI0000014,836.93
Department of Health,Leicestershire Partnership NHS Trust,11/06/19,NURSE - BAND 2 - AGENCY,Rutland Ward Nursing,HCL NURSING,HNSI0000014,223.60
Department of Health,Leicestershire Partnership NHS Trust,11/06/19,NURSE - BAND 5 - AGENCY,South East ICS,HCL NURSING,HNSI0000014,3453.52
Department of Health,Leicestershire Partnership NHS Trust,11/06/19,NURSE - BAND 5 - AGENCY,St Lukes Ward 3,HCL NURSING,HNSI0000014,723.16
Department of Health,Leicestershire Partnership NHS Trust,11/06/19,NURSE - BAND 5 - AGENCY,Welford Ward,HCL NURSING,HNSI0000014,326.24
Department of Health,Leicestershire Partnership NHS Trust,11/06/19,NURSE - BAND 5 - AGENCY,West Planned Care  - Charnwood Hub,HCL NURSING,HNSI0000014,535.86
Department of Health,Leicestershire Partnership NHS Trust,12/06/19,NURSE - BAND 5 - AGENCY,City ICS,HCL NURSING,HNSI0000011,819.71
Department of Health,Leicestershire Partnership NHS Trust,12/06/19,NURSE - BAND 5 - AGENCY,City Planned Care - East,HCL NURSING,HNSI0000011,22278.08
Department of Health,Leicestershire Partnership NHS Trust,12/06/19,NURSE - BAND 5 - AGENCY,City Planned Care - West,HCL NURSING,HNSI0000011,8437.31
Department of Health,Leicestershire Partnership NHS Trust,12/06/19,Nurse - Band 6 -Agency,City West CMHT MHSOP,HCL NURSING,HNSI0000011,1069.88
Department of Health,Leicestershire Partnership NHS Trust,12/06/19,NURSE - BAND 2 - AGENCY,Clarendon Ward,HCL NURSING,HNSI0000011,900.98
Department of Health,Leicestershire Partnership NHS Trust,12/06/19,NURSE - BAND 2 - AGENCY,Coalville Ward 2,HCL NURSING,HNSI0000011,217.36
Department of Health,Leicestershire Partnership NHS Trust,12/06/19,NURSE - BAND 5 - AGENCY,Coleman Ward,HCL NURSING,HNSI0000011,326.24
Department of Health,Leicestershire Partnership NHS Trust,12/06/19,NURSE - BAND 5 - AGENCY,Dalgliesh Ward,HCL NURSING,HNSI0000011,695.10
Department of Health,Leicestershire Partnership NHS Trust,12/06/19,NURSE - BAND 3 - AGENCY,East Planned Care - Blaby/Lutterworth,HCL NURSING,HNSI0000011,873.67
Department of Health,Leicestershire Partnership NHS Trust,12/06/19,NURSE - BAND 5 - AGENCY,Evening Service,HCL NURSING,HNSI0000011,500.62
Department of Health,Leicestershire Partnership NHS Trust,12/06/19,NURSE - BAND 2 - AGENCY,Fielding Palmer Nursing,HCL NURSING,HNSI0000011,109.19
Department of Health,Leicestershire Partnership NHS Trust,12/06/19,NURSE - BAND 5 - AGENCY,Fielding Palmer Nursing,HCL NURSING,HNSI0000011,2952.69
Department of Health,Leicestershire Partnership NHS Trust,12/06/19,NURSE - BAND 2 - AGENCY,H&B Comm Hosp East Ward,HCL NURSING,HNSI0000011,1439.53
Department of Health,Leicestershire Partnership NHS Trust,12/06/19,NURSE - BAND 5 - AGENCY,H&B Comm Hosp East Ward,HCL NURSING,HNSI0000011,800.27
Department of Health,Leicestershire Partnership NHS Trust,12/06/19,NURSE - BAND 2 - AGENCY,H&B Comm Hosp North Ward,HCL NURSING,HNSI0000011,320.31
Department of Health,Leicestershire Partnership NHS Trust,12/06/19,NURSE - BAND 5 - AGENCY,Lough Swithland Ward,HCL NURSING,HNSI0000011,1199.30
Department of Health,Leicestershire Partnership NHS Trust,12/06/19,Nurse - Band 6 -Agency,MHSOP Integrated Care Team,HCL NURSING,HNSI0000011,836.92
Department of Health,Leicestershire Partnership NHS Trust,12/06/19,NURSE - BAND 5 - AGENCY,North West ICS,HCL NURSING,HNSI0000011,1074.63
Department of Health,Leicestershire Partnership NHS Trust,12/06/19,NURSE - BAND 5 - AGENCY,Rutland Ward Nursing,HCL NURSING,HNSI0000011,419.12
Department of Health,Leicestershire Partnership NHS Trust,12/06/19,NURSE - BAND 5 - AGENCY,South East ICS,HCL NURSING,HNSI0000011,3549.65
Department of Health,Leicestershire Partnership NHS Trust,12/06/19,NURSE - BAND 2 - AGENCY,St Lukes Stroke Ward,HCL NURSING,HNSI0000011,362.29
Department of Health,Leicestershire Partnership NHS Trust,12/06/19,NURSE - BAND 5 - AGENCY,St Lukes Stroke Ward,HCL NURSING,HNSI0000011,1289.33
Department of Health,Leicestershire Partnership NHS Trust,12/06/19,NURSE - BAND 5 - AGENCY,St Lukes Ward 3,HCL NURSING,HNSI0000011,3601.05
Department of Health,Leicestershire Partnership NHS Trust,12/06/19,NURSE - BAND 5 - AGENCY,Welford Ward,HCL NURSING,HNSI0000011,302.58
Department of Health,Leicestershire Partnership NHS Trust,12/06/19,CHP Estates Management,Belgrave Health Centre (CHP),COMM HLTH PARTNERSHIPS LTD,0060110045,9466.11
Department of Health,Leicestershire Partnership NHS Trust,12/06/19,CHP Estates Management,Merlyn Vaz Centre (CHP),COMM HLTH PARTNERSHIPS LTD,0060110045,57461.09
Department of Health,Leicestershire Partnership NHS Trust,12/06/19,CHP Estates Management,Westcotes Health Centre (CHP),COMM HLTH PARTNERSHIPS LTD,0060110045,12018.80
Department of Health,Leicestershire Partnership NHS Trust,12/06/19,NURSE - BAND 2 - AGENCY,3 Rubicon Close,HCL NURSING,HNSI0000032,189.95
Department of Health,Leicestershire Partnership NHS Trust,12/06/19,NURSE - BAND 5 - AGENCY,3 Rubicon Close,HCL NURSING,HNSI0000032,295.25
Department of Health,Leicestershire Partnership NHS Trust,12/06/19,NURSE - BAND 2 - AGENCY,Acacia (Willows),HCL NURSING,HNSI0000032,211.93
Department of Health,Leicestershire Partnership NHS Trust,12/06/19,Nurse - Band 6 -Agency,Adult City East CMHT - Merlyn Vaz,HCL NURSING,HNSI0000032,2519.46
Department of Health,Leicestershire Partnership NHS Trust,12/06/19,Nurse - Band 6 -Agency,Adult County North West Leicestershire CMHT,HCL NURSING,HNSI0000032,325.57
Department of Health,Leicestershire Partnership NHS Trust,12/06/19,Nurse - Band 6 -Agency,Adult County West Leicestershire CMHT,HCL NURSING,HNSI0000032,1943.01
Department of Health,Leicestershire Partnership NHS Trust,12/06/19,NURSE - BAND 2 - AGENCY,Agnes Unit Management,HCL NURSING,HNSI0000032,2386.25
Department of Health,Leicestershire Partnership NHS Trust,12/06/19,NURSE - BAND 5 - AGENCY,Agnes Unit Management,HCL NURSING,HNSI0000032,1812.36
Department of Health,Leicestershire Partnership NHS Trust,12/06/19,NURSE - BAND 5 - AGENCY,Aston Ward (Bradgate Unit),HCL NURSING,HNSI0000032,339.96
Department of Health,Leicestershire Partnership NHS Trust,12/06/19,NURSE - BAND 2 - AGENCY,Beaumont Ward - Bradgate Unit,HCL NURSING,HNSI0000032,218.93
Department of Health,Leicestershire Partnership NHS Trust,12/06/19,NURSE - BAND 5 - AGENCY,Beaumont Ward - Bradgate Unit,HCL NURSING,HNSI0000032,329.81
Department of Health,Leicestershire Partnership NHS Trust,12/06/19,NURSE - BAND 2 - AGENCY,Belvoir Psychiatric Intensive Care Unit,HCL NURSING,HNSI0000032,3889.48
Department of Health,Leicestershire Partnership NHS Trust,12/06/19,NURSE - BAND 5 - AGENCY,Belvoir Psychiatric Intensive Care Unit,HCL NURSING,HNSI0000032,2519.36
Department of Health,Leicestershire Partnership NHS Trust,12/06/19,NURSE - BAND 5 - AGENCY,Bosworth Ward - Bradgate Unit,HCL NURSING,HNSI0000032,329.81
Department of Health,Leicestershire Partnership NHS Trust,12/06/19,NURSE - BAND 2 - AGENCY,Cedar (Willows),HCL NURSING,HNSI0000032,205.70
Department of Health,Leicestershire Partnership NHS Trust,12/06/19,Nurse - Band 6 -Agency,Crisis Resolution,HCL NURSING,HNSI0000032,5263.72
Department of Health,Leicestershire Partnership NHS Trust,12/06/19,NURSE - BAND 5 - AGENCY,Griffin Ward (HPC),HCL NURSING,HNSI0000032,3056.89
Department of Health,Leicestershire Partnership NHS Trust,12/06/19,NURSE - BAND 2 - AGENCY,Heather Ward,HCL NURSING,HNSI0000032,254.97
Department of Health,Leicestershire Partnership NHS Trust,12/06/19,NURSE - BAND 5 - AGENCY,Heather Ward,HCL NURSING,HNSI0000032,763.27
Department of Health,Leicestershire Partnership NHS Trust,12/06/19,Nurse - Band 6 -Agency,Leicestershire Psych-oncology Service,HCL NURSING,HNSI0000032,427.95
Department of Health,Leicestershire Partnership NHS Trust,12/06/19,Nurse - Band 6 -Agency,Mental Health Triage Team,HCL NURSING,HNSI0000032,3518.07
Department of Health,Leicestershire Partnership NHS Trust,12/06/19,NURSE - BAND 2 - AGENCY,Mill Lodge,HCL NURSING,HNSI0000032,490.07
Department of Health,Leicestershire Partnership NHS Trust,12/06/19,NURSE - BAND 5 - AGENCY,Stewart House,HCL NURSING,HNSI0000032,923.18
Department of Health,Leicestershire Partnership NHS Trust,12/06/19,NURSE - BAND 2 - AGENCY,Thornton Ward - Bradgate Unit,HCL NURSING,HNSI0000032,87.84
Department of Health,Leicestershire Partnership NHS Trust,12/06/19,NURSE - BAND 5 - AGENCY,Watermead Ward (Bradgate Unit),HCL NURSING,HNSI0000032,266.74
Department of Health,Leicestershire Partnership NHS Trust,12/06/19,Payroll Deductions - Kiddi Vouchers,Balance Sheet Collection,WIDER PLAN LTD,5077258,40843.91
Department of Health,Leicestershire Partnership NHS Trust,12/06/19,WIP Project Not in BS - Buildings excl Dwellings,Work in Progress,INTERSERVE CONSTRUCTION LTD,VEM55031,165284.24
Department of Health,Leicestershire Partnership NHS Trust,14/06/19,UHL Facilities Management SLA,Estates Central Invoices To Recharge,UHL NHS TRUST (RWE),L0228137,827106.58
Department of Health,Leicestershire Partnership NHS Trust,14/06/19,OCCUPATIONAL THERAPIST - AGENCY,Adult City West CMHT - BHSCC,MSI RECRUITMENT,MSIR240519,1828.28
Department of Health,Leicestershire Partnership NHS Trust,14/06/19,Professional & Technical Agency,CAMHS CITY TEAM,MSI RECRUITMENT,MSIR240519,1793.17
Department of Health,Leicestershire Partnership NHS Trust,14/06/19,PHYSIOTHERAPY - AGENCY,City Community Therapy,MSI RECRUITMENT,MSIR240519,3615.48
Department of Health,Leicestershire Partnership NHS Trust,14/06/19,PHYSIOTHERAPY - AGENCY,East Community Therapy,MSI RECRUITMENT,MSIR240519,1290.12
Department of Health,Leicestershire Partnership NHS Trust,14/06/19,OCCUPATIONAL THERAPIST - AGENCY,H&B Comm Hosp East Ward,MSI RECRUITMENT,MSIR240519,498.85
Department of Health,Leicestershire Partnership NHS Trust,14/06/19,PHYSIOTHERAPY - AGENCY,Hinckley MSK Physiotherapy,MSI RECRUITMENT,MSIR240519,2167.42
Department of Health,Leicestershire Partnership NHS Trust,14/06/19,OCCUPATIONAL THERAPIST - AGENCY,Inpatient OT,MSI RECRUITMENT,MSIR240519,705.29
Department of Health,Leicestershire Partnership NHS Trust,14/06/19,PHYSIOTHERAPY - AGENCY,Integrated Care Service - Rutland,MSI RECRUITMENT,MSIR240519,2407.42
Department of Health,Leicestershire Partnership NHS Trust,14/06/19,PHYSIOTHERAPY - AGENCY,Learning Disabilities - Physiotherapy,MSI RECRUITMENT,MSIR240519,1096.46
Department of Health,Leicestershire Partnership NHS Trust,14/06/19,PHYSIOTHERAPY - AGENCY,Loughborough MSK Physiotherapy,MSI RECRUITMENT,MSIR240519,1290.12
Department of Health,Leicestershire Partnership NHS Trust,14/06/19,OCCUPATIONAL THERAPIST - AGENCY,MHSOP Community Therapy,MSI RECRUITMENT,MSIR240519,1066.51
Department of Health,Leicestershire Partnership NHS Trust,14/06/19,PHYSIOTHERAPY - AGENCY,Mental Health Physical Nurse Team,MSI RECRUITMENT,MSIR240519,4956.70
Department of Health,Leicestershire Partnership NHS Trust,14/06/19,PHYSIOTHERAPY - AGENCY,Mill Lodge,MSI RECRUITMENT,MSIR240519,1516.90
Department of Health,Leicestershire Partnership NHS Trust,14/06/19,PHYSIOTHERAPY - AGENCY,NWL MSK Physiotherapy,MSI RECRUITMENT,MSIR240519,1032.10
Department of Health,Leicestershire Partnership NHS Trust,14/06/19,PHYSIOTHERAPY - AGENCY,Neuro/Stroke Rehab Service,MSI RECRUITMENT,MSIR240519,2791.14
Department of Health,Leicestershire Partnership NHS Trust,14/06/19,Professional & Technical Agency,Personality Disorder Services (PDS),MSI RECRUITMENT,MSIR240519,1457.50
Department of Health,Leicestershire Partnership NHS Trust,14/06/19,OCCUPATIONAL THERAPIST - AGENCY,Rutland Ward Nursing,MSI RECRUITMENT,MSIR240519,1204.12
Department of Health,Leicestershire Partnership NHS Trust,14/06/19,PHYSIOTHERAPY - AGENCY,South Leics MSK Physiotherapy,MSI RECRUITMENT,MSIR240519,1032.10
Department of Health,Leicestershire Partnership NHS Trust,17/06/19,Crs_NHS_LT1y -Resus Inventory Supplied.,Balance Sheet Collection,SUPPLY CHAIN CO LTD,1010055550,38009.71
Department of Health,Leicestershire Partnership NHS Trust,18/06/19,NURSE - BAND 5 - AGENCY,3 Rubicon Close,HCL NURSING,HNSI0000038,295.25
Department of Health,Leicestershire Partnership NHS Trust,18/06/19,Nurse - Band 6 -Agency,Adult City East CMHT - Merlyn Vaz,HCL NURSING,HNSI0000038,4183.80
Department of Health,Leicestershire Partnership NHS Trust,18/06/19,Nurse - Band 6 -Agency,Adult County Charnwood CMHT - Loughborough Base,HCL NURSING,HNSI0000038,855.90
Department of Health,Leicestershire Partnership NHS Trust,18/06/19,Nurse - Band 6 -Agency,Adult County North West Leicestershire CMHT,HCL NURSING,HNSI0000038,213.98
Department of Health,Leicestershire Partnership NHS Trust,18/06/19,NURSE - BAND 2 - AGENCY,Agnes Unit Management,HCL NURSING,HNSI0000038,1072.18
Department of Health,Leicestershire Partnership NHS Trust,18/06/19,NURSE - BAND 2 - AGENCY,Ashby Ward (Bradgate Unit),HCL NURSING,HNSI0000038,223.60
Department of Health,Leicestershire Partnership NHS Trust,18/06/19,NURSE - BAND 2 - AGENCY,Aston Ward (Bradgate Unit),HCL NURSING,HNSI0000038,168.41
Department of Health,Leicestershire Partnership NHS Trust,18/06/19,NURSE - BAND 5 - AGENCY,Aston Ward (Bradgate Unit),HCL NURSING,HNSI0000038,669.77
Department of Health,Leicestershire Partnership NHS Trust,18/06/19,NURSE - BAND 2 - AGENCY,Beaumont Ward - Bradgate Unit,HCL NURSING,HNSI0000038,589.01
Department of Health,Leicestershire Partnership NHS Trust,18/06/19,NURSE - BAND 5 - AGENCY,Beaumont Ward - Bradgate Unit,HCL NURSING,HNSI0000038,346.72
Department of Health,Leicestershire Partnership NHS Trust,18/06/19,NURSE - BAND 2 - AGENCY,Belvoir Psychiatric Intensive Care Unit,HCL NURSING,HNSI0000038,1234.53
Department of Health,Leicestershire Partnership NHS Trust,18/06/19,NURSE - BAND 5 - AGENCY,Belvoir Psychiatric Intensive Care Unit,HCL NURSING,HNSI0000038,2255.77
Department of Health,Leicestershire Partnership NHS Trust,18/06/19,NURSE - BAND 2 - AGENCY,Bosworth Ward - Bradgate Unit,HCL NURSING,HNSI0000038,610.07
Department of Health,Leicestershire Partnership NHS Trust,18/06/19,NURSE - BAND 5 - AGENCY,Bosworth Ward - Bradgate Unit,HCL NURSING,HNSI0000038,596.56
Department of Health,Leicestershire Partnership NHS Trust,18/06/19,Nurse - Band 6 -Agency,Crisis Resolution,HCL NURSING,HNSI0000038,3026.83
Department of Health,Leicestershire Partnership NHS Trust,18/06/19,NURSE - BAND 5 - AGENCY,Griffin Ward (HPC),HCL NURSING,HNSI0000038,2231.72
Department of Health,Leicestershire Partnership NHS Trust,18/06/19,NURSE - BAND 2 - AGENCY,Heather Ward,HCL NURSING,HNSI0000038,207.68
Department of Health,Leicestershire Partnership NHS Trust,18/06/19,NURSE - BAND 5 - AGENCY,Heather Ward,HCL NURSING,HNSI0000038,1193.11
Department of Health,Leicestershire Partnership NHS Trust,18/06/19,Nurse - Band 6 -Agency,Leicestershire Psych-oncology Service,HCL NURSING,HNSI0000038,641.93
Department of Health,Leicestershire Partnership NHS Trust,18/06/19,Nurse - Band 6 -Agency,Mental Health Triage Team,HCL NURSING,HNSI0000038,3016.75
Department of Health,Leicestershire Partnership NHS Trust,18/06/19,NURSE - BAND 2 - AGENCY,Mill Lodge,HCL NURSING,HNSI0000038,110.21
Department of Health,Leicestershire Partnership NHS Trust,18/06/19,NURSE - BAND 5 - AGENCY,Mill Lodge,HCL NURSING,HNSI0000038,833.33
Department of Health,Leicestershire Partnership NHS Trust,18/06/19,NURSE - BAND 2 - AGENCY,Phoenix Ward (HPC),HCL NURSING,HNSI0000038,370.20
Department of Health,Leicestershire Partnership NHS Trust,18/06/19,NURSE - BAND 2 - AGENCY,Stewart House,HCL NURSING,HNSI0000038,71.18
Department of Health,Leicestershire Partnership NHS Trust,18/06/19,NURSE - BAND 2 - AGENCY,Thornton Ward - Bradgate Unit,HCL NURSING,HNSI0000038,151.90
Department of Health,Leicestershire Partnership NHS Trust,18/06/19,NURSE - BAND 5 - AGENCY,Thornton Ward - Bradgate Unit,HCL NURSING,HNSI0000038,329.81
Department of Health,Leicestershire Partnership NHS Trust,18/06/19,NURSE - BAND 2 - AGENCY,Watermead Ward (Bradgate Unit),HCL NURSING,HNSI0000038,163.68
Department of Health,Leicestershire Partnership NHS Trust,19/06/19,Rent,Work Force Transformation,NSPCC,118064,28054.56
Department of Health,Leicestershire Partnership NHS Trust,20/06/19,NURSE - BAND 2 - AGENCY,Beechwood Ward,HCL NURSING,HNSI0000033,494.54
Department of Health,Leicestershire Partnership NHS Trust,20/06/19,NURSE - BAND 5 - AGENCY,Beechwood Ward,HCL NURSING,HNSI0000033,386.06
Department of Health,Leicestershire Partnership NHS Trust,20/06/19,NURSE - BAND 5 - AGENCY,City ICS,HCL NURSING,HNSI0000033,1129.14
Department of Health,Leicestershire Partnership NHS Trust,20/06/19,NURSE - BAND 5 - AGENCY,City Planned Care - East,HCL NURSING,HNSI0000033,12266.98
Department of Health,Leicestershire Partnership NHS Trust,20/06/19,NURSE - BAND 5 - AGENCY,City Planned Care - West,HCL NURSING,HNSI0000033,6674.53
Department of Health,Leicestershire Partnership NHS Trust,20/06/19,Nurse - Band 6 -Agency,City West CMHT MHSOP,HCL NURSING,HNSI0000033,855.90
Department of Health,Leicestershire Partnership NHS Trust,20/06/19,NURSE - BAND 2 - AGENCY,Clarendon Ward,HCL NURSING,HNSI0000033,277.94
Department of Health,Leicestershire Partnership NHS Trust,20/06/19,NURSE - BAND 5 - AGENCY,Clarendon Ward,HCL NURSING,HNSI0000033,1227.75
Department of Health,Leicestershire Partnership NHS Trust,20/06/19,NURSE - BAND 2 - AGENCY,Coalville Snibston Ward,HCL NURSING,HNSI0000033,1094.30
Department of Health,Leicestershire Partnership NHS Trust,20/06/19,NURSE - BAND 2 - AGENCY,Coalville Ward 2,HCL NURSING,HNSI0000033,223.60
Department of Health,Leicestershire Partnership NHS Trust,20/06/19,NURSE - BAND 5 - AGENCY,Coalville Ward 2,HCL NURSING,HNSI0000033,600.67
Department of Health,Leicestershire Partnership NHS Trust,20/06/19,NURSE - BAND 2 - AGENCY,Coleman Ward,HCL NURSING,HNSI0000033,1035.82
Department of Health,Leicestershire Partnership NHS Trust,20/06/19,NURSE - BAND 5 - AGENCY,Dalgliesh Ward,HCL NURSING,HNSI0000033,720.41
Department of Health,Leicestershire Partnership NHS Trust,20/06/19,NURSE - BAND 3 - AGENCY,East Planned Care - Blaby/Lutterworth,HCL NURSING,HNSI0000033,650.19
Department of Health,Leicestershire Partnership NHS Trust,20/06/19,NURSE - BAND 5 - AGENCY,Evening Service,HCL NURSING,HNSI0000033,310.05
Department of Health,Leicestershire Partnership NHS Trust,20/06/19,NURSE - BAND 5 - AGENCY,Fielding Palmer Nursing,HCL NURSING,HNSI0000033,405.36
Department of Health,Leicestershire Partnership NHS Trust,20/06/19,NURSE - BAND 2 - AGENCY,Gwendolen Ward,HCL NURSING,HNSI0000033,182.01
Department of Health,Leicestershire Partnership NHS Trust,20/06/19,NURSE - BAND 5 - AGENCY,Gwendolen Ward,HCL NURSING,HNSI0000033,615.30
Department of Health,Leicestershire Partnership NHS Trust,20/06/19,NURSE - BAND 2 - AGENCY,H&B Comm Hosp East Ward,HCL NURSING,HNSI0000033,1443.11
Department of Health,Leicestershire Partnership NHS Trust,20/06/19,NURSE - BAND 5 - AGENCY,H&B Comm Hosp East Ward,HCL NURSING,HNSI0000033,1658.57
Department of Health,Leicestershire Partnership NHS Trust,20/06/19,NURSE - BAND 5 - AGENCY,H&B Comm Hosp North Ward,HCL NURSING,HNSI0000033,239.45
Department of Health,Leicestershire Partnership NHS Trust,20/06/19,NURSE - BAND 2 - AGENCY,Lough Swithland Ward,HCL NURSING,HNSI0000033,473.90
Department of Health,Leicestershire Partnership NHS Trust,20/06/19,NURSE - BAND 5 - AGENCY,Lough Swithland Ward,HCL NURSING,HNSI0000033,835.05
Department of Health,Leicestershire Partnership NHS Trust,20/06/19,NURSE - BAND 5 - AGENCY,North West ICS,HCL NURSING,HNSI0000033,1604.82
Department of Health,Leicestershire Partnership NHS Trust,20/06/19,NURSE - BAND 5 - AGENCY,Rutland Ward Nursing,HCL NURSING,HNSI0000033,393.35
Department of Health,Leicestershire Partnership NHS Trust,20/06/19,NURSE - BAND 5 - AGENCY,South East ICS,HCL NURSING,HNSI0000033,3255.52
Department of Health,Leicestershire Partnership NHS Trust,20/06/19,NURSE - BAND 2 - AGENCY,St Lukes Stroke Ward,HCL NURSING,HNSI0000033,750.44
Department of Health,Leicestershire Partnership NHS Trust,20/06/19,NURSE - BAND 5 - AGENCY,St Lukes Stroke Ward,HCL NURSING,HNSI0000033,395.13
Department of Health,Leicestershire Partnership NHS Trust,20/06/19,NURSE - BAND 5 - AGENCY,St Lukes Ward 3,HCL NURSING,HNSI0000033,1119.37
Department of Health,Leicestershire Partnership NHS Trust,20/06/19,VAT_Drs _ LT1y -VAT Trading/Business Activities Input Tax,Balance Sheet Collection,VIRGIN MEDIA BUSINESS,853083001/004/0619,11817.66
Department of Health,Leicestershire Partnership NHS Trust,20/06/19,Landline Telephone Rental / Calls,"Beaumont Leys Health Centre (P94, LPT)",VIRGIN MEDIA BUSINESS,853083001/004/0619,409.38
Department of Health,Leicestershire Partnership NHS Trust,20/06/19,Landline Telephone Rental / Calls,"Bennion Centre (including Forest Grange Day Unit) (P8, LPT)",VIRGIN MEDIA BUSINESS,853083001/004/0619,7.74
Department of Health,Leicestershire Partnership NHS Trust,20/06/19,Landline Telephone Rental / Calls,"Bradgate Unit (including Glenvale day Unit) (P7, LPT)",VIRGIN MEDIA BUSINESS,853083001/004/0619,7547.99
Department of Health,Leicestershire Partnership NHS Trust,20/06/19,Landline Telephone Rental / Calls,Braunstone Health and Social Care Centre (Part) (PROPCO),VIRGIN MEDIA BUSINESS,853083001/004/0619,1249.90
Department of Health,Leicestershire Partnership NHS Trust,20/06/19,Landline Telephone Rental / Calls,Bridge Park Plaza - First Floor (LPT),VIRGIN MEDIA BUSINESS,853083001/004/0619,4245.00
Department of Health,Leicestershire Partnership NHS Trust,20/06/19,Landline Telephone Rental / Calls,"Coalville Community Hospital (P138, LPT)",VIRGIN MEDIA BUSINESS,853083001/004/0619,1315.85
Department of Health,Leicestershire Partnership NHS Trust,20/06/19,Landline Telephone Rental / Calls,"Coalville Health Centre (P121, LPT)",VIRGIN MEDIA BUSINESS,853083001/004/0619,354.59
Department of Health,Leicestershire Partnership NHS Trust,20/06/19,Landline Telephone Rental / Calls,County Hall,VIRGIN MEDIA BUSINESS,853083001/004/0619,1406.39
Department of Health,Leicestershire Partnership NHS Trust,20/06/19,Landline Telephone Rental / Calls,"Evington Centre (P6, LPT)",VIRGIN MEDIA BUSINESS,853083001/004/0619,1547.41
Department of Health,Leicestershire Partnership NHS Trust,20/06/19,Landline Telephone Rental / Calls,HIS,VIRGIN MEDIA BUSINESS,853083001/004/0619,2672.23
Department of Health,Leicestershire Partnership NHS Trust,20/06/19,Landline Telephone Rental / Calls,"Hawthorne Centre - Coalville (P14, LPT)",VIRGIN MEDIA BUSINESS,853083001/004/0619,493.42
Department of Health,Leicestershire Partnership NHS Trust,20/06/19,Landline Telephone Rental / Calls,"Hinckley and Bosworth Community Hospital (Sunnyside) (P133, LPT)",VIRGIN MEDIA BUSINESS,853083001/004/0619,1048.25
Department of Health,Leicestershire Partnership NHS Trust,20/06/19,Landline Telephone Rental / Calls,Hood Park Leisure Centre Clinic,VIRGIN MEDIA BUSINESS,853083001/004/0619,91.10
Department of Health,Leicestershire Partnership NHS Trust,20/06/19,Landline Telephone Rental / Calls,"Hynca Lodge (P33, LPT)",VIRGIN MEDIA BUSINESS,853083001/004/0619,371.83
Department of Health,Leicestershire Partnership NHS Trust,20/06/19,Landline Telephone Rental / Calls,"Legion House, Ashby",VIRGIN MEDIA BUSINESS,853083001/004/0619,79.15
Department of Health,Leicestershire Partnership NHS Trust,20/06/19,Landline Telephone Rental / Calls,"Loughborough Hospital (P136, LPT)",VIRGIN MEDIA BUSINESS,853083001/004/0619,4604.97
Department of Health,Leicestershire Partnership NHS Trust,20/06/19,Landline Telephone Rental / Calls,Mawson House (LPT),VIRGIN MEDIA BUSINESS,853083001/004/0619,495.26
Department of Health,Leicestershire Partnership NHS Trust,20/06/19,Landline Telephone Rental / Calls,"Mett Centre (P49, LPT)",VIRGIN MEDIA BUSINESS,853083001/004/0619,88.82
Department of Health,Leicestershire Partnership NHS Trust,20/06/19,Landline Telephone Rental / Calls,NSPCC Training Cente,VIRGIN MEDIA BUSINESS,853083001/004/0619,170.05
Department of Health,Leicestershire Partnership NHS Trust,20/06/19,Landline Telephone Rental / Calls,New Parks Health Centre (PROPCO),VIRGIN MEDIA BUSINESS,853083001/004/0619,1644.06
Department of Health,Leicestershire Partnership NHS Trust,20/06/19,Landline Telephone Rental / Calls,"OSL House (P54, LPT)",VIRGIN MEDIA BUSINESS,853083001/004/0619,1506.64
Department of Health,Leicestershire Partnership NHS Trust,20/06/19,Landline Telephone Rental / Calls,"Orchard Resource Centre (P15, LPT)",VIRGIN MEDIA BUSINESS,853083001/004/0619,531.36
Department of Health,Leicestershire Partnership NHS Trust,20/06/19,Landline Telephone Rental / Calls,Pasley Road Health Centre (PROPCO),VIRGIN MEDIA BUSINESS,853083001/004/0619,278.58
Department of Health,Leicestershire Partnership NHS Trust,20/06/19,Landline Telephone Rental / Calls,"Prince Philip House (P96, LPT)",VIRGIN MEDIA BUSINESS,853083001/004/0619,1645.70
Department of Health,Leicestershire Partnership NHS Trust,20/06/19,Landline Telephone Rental / Calls,Rushey Mead Health Centre (PROPCO),VIRGIN MEDIA BUSINESS,853083001/004/0619,74.57
Department of Health,Leicestershire Partnership NHS Trust,20/06/19,Landline Telephone Rental / Calls,"Shepshed Health Centre (P123, LPT)",VIRGIN MEDIA BUSINESS,853083001/004/0619,9.26
Department of Health,Leicestershire Partnership NHS Trust,20/06/19,Landline Telephone Rental / Calls,"Springfield Road Health Centre (P92, LPT)",VIRGIN MEDIA BUSINESS,853083001/004/0619,385.50
Department of Health,Leicestershire Partnership NHS Trust,20/06/19,Landline Telephone Rental / Calls,St Peters Primary Care Centre (CHP),VIRGIN MEDIA BUSINESS,853083001/004/0619,2536.39
Department of Health,Leicestershire Partnership NHS Trust,20/06/19,Landline Telephone Rental / Calls,"Stewart House (P61, LPT)",VIRGIN MEDIA BUSINESS,853083001/004/0619,7.74
Department of Health,Leicestershire Partnership NHS Trust,20/06/19,Landline Telephone Rental / Calls,"Swithland House - London Road 352 (P44, LPT)",VIRGIN MEDIA BUSINESS,853083001/004/0619,355.60
Department of Health,Leicestershire Partnership NHS Trust,20/06/19,Landline Telephone Rental / Calls,"The Cedars (P19, LPT)",VIRGIN MEDIA BUSINESS,853083001/004/0619,611.90
Department of Health,Leicestershire Partnership NHS Trust,20/06/19,Landline Telephone Rental / Calls,"The Willows - Cordelia Close (P22, LPT)",VIRGIN MEDIA BUSINESS,853083001/004/0619,444.16
Department of Health,Leicestershire Partnership NHS Trust,20/06/19,Landline Telephone Rental / Calls,"Valentine Centre (P3, LPT)",VIRGIN MEDIA BUSINESS,853083001/004/0619,1738.36
Department of Health,Leicestershire Partnership NHS Trust,20/06/19,Landline Telephone Rental / Calls,Warren Park Way 25 (PROPCO),VIRGIN MEDIA BUSINESS,853083001/004/0619,988.63
Department of Health,Leicestershire Partnership NHS Trust,20/06/19,Landline Telephone Rental / Calls,"Westcotes Group -Westcotes House (P78, LPT)",VIRGIN MEDIA BUSINESS,853083001/004/0619,1445.93
Department of Health,Leicestershire Partnership NHS Trust,20/06/19,Landline Telephone Rental / Calls,"Winstanley Drive Health Centre (P8, LPT)",VIRGIN MEDIA BUSINESS,853083001/004/0619,414.23
Department of Health,Leicestershire Partnership NHS Trust,20/06/19,Trade_Drs_LT1y -Miscellaneous receipts,Balance Sheet Collection,LEIC CITY COUNCIL,87137894,25000.00
Department of Health,Leicestershire Partnership NHS Trust,21/06/19,Computer EquipmentMaintenance,HIS Infrastructure,TP LEASING LTD,MI/0025669/01,57274.19
Department of Health,Leicestershire Partnership NHS Trust,21/06/19,Med GP Trainees,Medical Trainees,ST.HELENS & KNOWSLEY NHS TRUST,16785900,60000.00
Department of Health,Leicestershire Partnership NHS Trust,24/06/19,Crs_NHS_LT1y -Resus Inventory Supplied.,Balance Sheet Collection,SUPPLY CHAIN CO LTD,1010061723,53787.48
Department of Health,Leicestershire Partnership NHS Trust,25/06/19,Nurse - Band 6 -Agency,Adult City East CMHT - Merlyn Vaz,HCL NURSING,HNSI0000048,4566.97
Department of Health,Leicestershire Partnership NHS Trust,25/06/19,Nurse - Band 6 -Agency,Adult County Charnwood CMHT - Loughborough Base,HCL NURSING,HNSI0000048,855.90
Department of Health,Leicestershire Partnership NHS Trust,25/06/19,Nurse - Band 6 -Agency,Adult County North West Leicestershire CMHT,HCL NURSING,HNSI0000048,1069.88
Department of Health,Leicestershire Partnership NHS Trust,25/06/19,Nurse - Band 6 -Agency,Adult County West Leicestershire CMHT,HCL NURSING,HNSI0000048,2156.98
Department of Health,Leicestershire Partnership NHS Trust,25/06/19,NURSE - BAND 2 - AGENCY,Agnes Unit Management,HCL NURSING,HNSI0000048,407.76
Department of Health,Leicestershire Partnership NHS Trust,25/06/19,NURSE - BAND 5 - AGENCY,Agnes Unit Management,HCL NURSING,HNSI0000048,179.25
Department of Health,Leicestershire Partnership NHS Trust,25/06/19,NURSE - BAND 2 - AGENCY,Aston Ward (Bradgate Unit),HCL NURSING,HNSI0000048,423.63
Department of Health,Leicestershire Partnership NHS Trust,25/06/19,NURSE - BAND 2 - AGENCY,Beaumont Ward - Bradgate Unit,HCL NURSING,HNSI0000048,211.12
Department of Health,Leicestershire Partnership NHS Trust,25/06/19,NURSE - BAND 2 - AGENCY,Belvoir Psychiatric Intensive Care Unit,HCL NURSING,HNSI0000048,1095.24
Department of Health,Leicestershire Partnership NHS Trust,25/06/19,NURSE - BAND 5 - AGENCY,Belvoir Psychiatric Intensive Care Unit,HCL NURSING,HNSI0000048,1329.40
Department of Health,Leicestershire Partnership NHS Trust,25/06/19,NURSE - BAND 2 - AGENCY,Bosworth Ward - Bradgate Unit,HCL NURSING,HNSI0000048,185.22
Department of Health,Leicestershire Partnership NHS Trust,25/06/19,NURSE - BAND 5 - AGENCY,Bosworth Ward - Bradgate Unit,HCL NURSING,HNSI0000048,1789.67
Department of Health,Leicestershire Partnership NHS Trust,25/06/19,Nurse - Band 6 -Agency,Crisis Resolution,HCL NURSING,HNSI0000048,5325.21
Department of Health,Leicestershire Partnership NHS Trust,25/06/19,NURSE - BAND 5 - AGENCY,Griffin Ward (HPC),HCL NURSING,HNSI0000048,3030.33
Department of Health,Leicestershire Partnership NHS Trust,25/06/19,NURSE - BAND 2 - AGENCY,Heather Ward,HCL NURSING,HNSI0000048,706.48
Department of Health,Leicestershire Partnership NHS Trust,25/06/19,NURSE - BAND 5 - AGENCY,Heather Ward,HCL NURSING,HNSI0000048,1040.15
Department of Health,Leicestershire Partnership NHS Trust,25/06/19,Nurse - Band 6 -Agency,Leicestershire Psych-oncology Service,HCL NURSING,HNSI0000048,530.33
Department of Health,Leicestershire Partnership NHS Trust,25/06/19,Nurse - Band 6 -Agency,Mental Health Triage Team,HCL NURSING,HNSI0000048,1264.21
Department of Health,Leicestershire Partnership NHS Trust,25/06/19,NURSE - BAND 2 - AGENCY,Mill Lodge,HCL NURSING,HNSI0000048,293.13
Department of Health,Leicestershire Partnership NHS Trust,25/06/19,NURSE - BAND 5 - AGENCY,Mill Lodge,HCL NURSING,HNSI0000048,169.11
Department of Health,Leicestershire Partnership NHS Trust,25/06/19,NURSE - BAND 2 - AGENCY,Phoenix Ward (HPC),HCL NURSING,HNSI0000048,598.13
Department of Health,Leicestershire Partnership NHS Trust,25/06/19,NURSE - BAND 5 - AGENCY,Phoenix Ward (HPC),HCL NURSING,HNSI0000048,739.60
Department of Health,Leicestershire Partnership NHS Trust,25/06/19,NURSE - BAND 2 - AGENCY,Sycamore (Willows),HCL NURSING,HNSI0000048,211.12
Department of Health,Leicestershire Partnership NHS Trust,25/06/19,NURSE - BAND 2 - AGENCY,Thornton Ward - Bradgate Unit,HCL NURSING,HNSI0000048,239.57
Department of Health,Leicestershire Partnership NHS Trust,25/06/19,NURSE - BAND 2 - AGENCY,Watermead Ward (Bradgate Unit),HCL NURSING,HNSI0000048,220.57
Department of Health,Leicestershire Partnership NHS Trust,25/06/19,NURSE - BAND 5 - AGENCY,Watermead Ward (Bradgate Unit),HCL NURSING,HNSI0000048,1608.91
Department of Health,Leicestershire Partnership NHS Trust,26/06/19,Telephone equipment,New Parks Health Centre (PROPCO),VIRGIN MEDIA BUSINESS,60039079,22229.48
Department of Health,Leicestershire Partnership NHS Trust,26/06/19,Telephone equipment,SPA,VIRGIN MEDIA BUSINESS,60039079,8481.30
Department of Health,Leicestershire Partnership NHS Trust,27/06/19,Insurance Costs,Chief Executives Office,NHS LITIGATION AUTHORITY,SICX/00145107,83439.60
Department of Health,Leicestershire Partnership NHS Trust,27/06/19,Contract : Accomodation,Out of County Income - Inpateints Project,TURNING POINT,SI-TPS-00023160,47507.58
Department of Health,Leicestershire Partnership NHS Trust,28/06/19,CHP Estates Management,Belgrave Health Centre (CHP),COMM HLTH PARTNERSHIPS LTD,0060115126,9466.11
Department of Health,Leicestershire Partnership NHS Trust,28/06/19,CHP Estates Management,Merlyn Vaz Centre (CHP),COMM HLTH PARTNERSHIPS LTD,0060115126,57461.09
Department of Health,Leicestershire Partnership NHS Trust,28/06/19,CHP Estates Management,Westcotes Health Centre (CHP),COMM HLTH PARTNERSHIPS LTD,0060115126,12018.80
Department of Health,Leicestershire Partnership NHS Trust,28/06/19,Leased / Hired Vehicles,Adult County West Leicestershire CMHT,AUTOMOTIVE LEASING LTD,505476803,5.00
Department of Health,Leicestershire Partnership NHS Trust,28/06/19,Prep_ LT1y -Prepayments Lease Cars,Balance Sheet Collection,AUTOMOTIVE LEASING LTD,505476803,39583.72
Department of Health,Leicestershire Partnership NHS Trust,28/06/19,Trade_Drs_LT1y -Lease Cars Invoicing Contrl Ac.,Balance Sheet Collection,AUTOMOTIVE LEASING LTD,505476803,100.00
Department of Health,Leicestershire Partnership NHS Trust,28/06/19,Leased / Hired Vehicles,CAMHS Young Peoples Team,AUTOMOTIVE LEASING LTD,505476803,533.68
Department of Health,Leicestershire Partnership NHS Trust,28/06/19,Leased / Hired Vehicles,City Planned Care - East,AUTOMOTIVE LEASING LTD,505476803,589.69
Department of Health,Leicestershire Partnership NHS Trust,28/06/19,Leased / Hired Vehicles,City West CMHT MHSOP,AUTOMOTIVE LEASING LTD,505476803,5.00
Department of Health,Leicestershire Partnership NHS Trust,28/06/19,Leased / Hired Vehicles,Countywide Falls Service,AUTOMOTIVE LEASING LTD,505476803,110.00
Department of Health,Leicestershire Partnership NHS Trust,28/06/19,Leased / Hired Vehicles,Countywide Memory Service,AUTOMOTIVE LEASING LTD,505476803,160.00
Department of Health,Leicestershire Partnership NHS Trust,28/06/19,Leased / Hired Vehicles,"East Planned Care - Melton,Syston,Rutland",AUTOMOTIVE LEASING LTD,505476803,5.00
Department of Health,Leicestershire Partnership NHS Trust,28/06/19,Leased / Hired Vehicles,Evening Service,AUTOMOTIVE LEASING LTD,505476803,5.00
Department of Health,Leicestershire Partnership NHS Trust,28/06/19,Leased / Hired Vehicles,Home Enteral Feeding Services,AUTOMOTIVE LEASING LTD,505476803,5.00
Department of Health,Leicestershire Partnership NHS Trust,28/06/19,Leased / Hired Vehicles,Mill Lodge,AUTOMOTIVE LEASING LTD,505476803,977.22
Department of Health,Leicestershire Partnership NHS Trust,28/06/19,Leased / Hired Vehicles,South Leicestershire CMHT MHSOP,AUTOMOTIVE LEASING LTD,505476803,1152.42
Department of Health,Leicestershire Partnership NHS Trust,28/06/19,Leased / Hired Vehicles,West Leicestershire CMHT MHSOP,AUTOMOTIVE LEASING LTD,505476803,5.00
Department of Health,Leicestershire Partnership NHS Trust,28/06/19,Leased / Hired Vehicles,West Planned Care  - Charnwood Hub,AUTOMOTIVE LEASING LTD,505476803,1019.21
Department of Health,Leicestershire Partnership NHS Trust,28/06/19,Leased / Hired Vehicles,West Planned Care - NWL Hub,AUTOMOTIVE LEASING LTD,505476803,5.00
